[Event "9th Holuj-Radzikowska Rapid 19"]
[Site "Wroclaw"]
[Date "2019.12.07"]
[Round "2"]
[White "Zatonskih, Anna"]
[Black "Socko, Monika"]
[Result "1-0"]
[ECO "A46"]
[WhiteElo "2420"]
[BlackElo "2407"]
[Annotator "NA"]
[PlyCount "109"]
[EventDate "2019.12.06"]
[EventType "team-tourn"]
[EventCountry "POL"]
[SourceTitle "playchess.com"]
[Source "ChessBase"]
[SourceQuality "1"]
[WhiteTeam "Team World"]
[BlackTeam "Team Poland"]
[TimeControl "900+10"]

1. d4 {[%emt 0:00:00]} Nf6 {[%emt 0:00:00]} 2. Nf3 {[%emt 0:00:00]} e6 {[%emt 0:00:00]} 3. g3 {[%emt 0:00:00]} c5 {[%emt 0:00:02]} 4. Bg2 {[%emt 0:00:01]} cxd4 {[%emt 0:00:33]} 5. Nxd4 {[%emt 0:00:01]} d5 {[%emt 0:00:01]} 6. O-O {[%emt 0:00:02]} e5 {[%emt 0:00:06]} 7. Nb3 {[%emt 0:00:01]} Nc6 {[%emt 0:00:13]} 8. Bg5 {[%emt 0:01:11]} Be6 {[%emt 0:00:08]} 9. Nc3 {[%emt 0:00:20]} d4 {[%emt 0:00:12]} 10. Ne4 {[%emt 0:00:03]} Be7 {[%emt 0:00:10]} 11. Bxf6 {[%emt 0:01:12]} Bxf6 {[%emt 0:00:42]} 12. Nbc5 {[%emt 0:00:14]} Bc8 {[%emt 0:00:12]} 13. Nxf6+ {[%emt 0:00:44]} Qxf6 {[%emt 0:00:22]} 14. c3 {[%emt 0:00:05]} O-O {[%emt 0:00:59]} 15. cxd4 {[%emt 0:00:24]} exd4 {[%emt 0:01:29]} 16. Rc1 {[%emt 0:00:31]} Rd8 {[%emt 0:01:51]} 17. Qa4 {[%emt 0:01:34]} Qe7 {[%emt 0:00:45]} 18. Rfe1 {[%emt 0:02:23]} Rb8 {[%emt 0:01:37]} 19. Qb5 {[%emt 0:02:42]} Be6 {[%emt 0:01:34]} 20. Nxe6 {[%emt 0:01:16]} Qxe6 {[%emt 0:00:32]} 21. b3 {[%emt 0:00:24]} Ne5 {[%emt 0:03:31]} 22. Red1 {[%emt 0:00:18]} a6 {[%emt 0:00:23]} 23. Qa5 {[%emt 0:02:14]} Ng4 {[%emt 0:01:56]} 24. Bf3 {[%emt 0:01:11]} h6 {[%emt 0:00:05]} 25. Qb4 {[%emt 0:01:36]} Ne5 {[%emt 0:00:35]} 26. Rxd4 {[%emt 0:00:02]} Nxf3+ {[%emt 0:00:32]} 27. exf3 {[%emt 0:00:01]} Rxd4 {[%emt 0:00:05]} 28. Qxd4 {[%emt 0:00:01]} Qe2 {[%emt 0:00:02]} 29. Qa7 {[%emt 0:00:57]} Rd8 {[%emt 0:00:40]} 30. Qxb7 {[%emt 0:00:19]} Qxa2 {[%emt 0:00:11]} 31. Kg2 {[%emt 0:00:10]} Qa5 32. Rc6 {[%emt 0:00:05]} Qf5 {[%emt 0:00:21]} 33. Rxa6 {[%emt 0:00:03]} Rd3 {[%emt 0:00:04]} 34. Ra8+ {[%emt 0:00:05]} Kh7 {[%emt 0:00:01]} 35. Ra7 {[%emt 0:00:15]} Kg6 {[%emt 0:00:08]} 36. b4 {[%emt 0:00:08]} Rb3 {[%emt 0:00:03]} 37. Qc6+ {[%emt 0:00:17]} Kh7 {[%emt 0:00:04]} 38. Rb7 {[%emt 0:00:12]} g6 {[%emt 0:00:10]} 39. Qe4 {[%emt 0:00:09]} Qxe4 {[%emt 0:00:28]} 40. fxe4 {[%emt 0:00:01]} Kg7 {[%emt 0:00:01]} 41. e5 {[%emt 0:00:01]} Kf8 {[%emt 0:00:01]} 42. h3 {[%emt 0:00:18]} g5 {[%emt 0:00:00]} 43. b5 {[%emt 0:00:15]} h5 {[%emt 0:00:01]} 44. b6 {[%emt 0:00:07]} g4 {[%emt 0:00:01]} 45. hxg4 {[%emt 0:00:01]} hxg4 {[%emt 0:00:00]} 46. Rb8+ {[%emt 0:00:14]} Kg7 {[%emt 0:00:34]} 47. b7 {[%emt 0:00:24]} Rb1 {[%emt 0:00:03]} 48. f4 {[%emt 0:00:01]} gxf3+ {[%emt 0:00:09]} 49. Kxf3 {[%emt 0:00:01]} Rb5 {[%emt 0:00:06]} 50. Kf4 {[%emt 0:00:10]} Kh7 {[%emt 0:00:04]} 51. Kf5 {[%emt 0:00:04]} Kg7 {[%emt 0:00:03]} 52. g4 {[%emt 0:00:01]} f6 {[%emt 0:00:12]} 53. Re8 {[%emt 0:00:27]} Rxb7 {[%emt 0:00:13]} 54. exf6+ {[%emt 0:00:02]} Kf7 {[%emt 0:00:07]} 55. Re7+ {[%emt 0:00:15]} 1-0

[Event "9th Holuj-Radzikowska Rapid 19"]
[Site "Wroclaw"]
[Date "2019.12.07"]
[Round "2"]
[White "Cyfka, Karina"]
[Black "Houska, Jovanka"]
[Result "1/2-1/2"]
[ECO "B13"]
[WhiteElo "2410"]
[BlackElo "2412"]
[Annotator "NA"]
[PlyCount "96"]
[EventDate "2019.12.06"]
[EventType "team-tourn"]
[EventCountry "POL"]
[SourceTitle "playchess.com"]
[Source "ChessBase"]
[SourceQuality "1"]
[WhiteTeam "Team Poland"]
[BlackTeam "Team World"]
[TimeControl "900+10"]

1. e4 c6 2. d4 d5 3. exd5 cxd5 4. Bd3 Nf6 5. c3 Qc7 (5... Bg4 6. Qb3 Qb6 7. Qxb6 axb6 8. Bf4 Nc6 9. h3 Bh5 10. Na3 e6 11. Nb5 Kd7 12. a4 Ne8 13. Be2 Bg6 14. Nf3 {0-1 (31) Wei,Y (2721)-Vachier Lagrave,M (2774) chess.com INT 2019}) 6. Ne2 {B13: Caro-Kann: Exchange Variation and Panov-Botvinnik Attack} Bg4 7. O-O Nc6 8. Qe1 Bh5 9. Bf4 Qb6 $146 ({Predecessor:} 9... Qd7 10. Nd2 e6 11. Bg3 Bg6 12. Nf4 Nh5 13. Qe2 Nxf4 14. Bxf4 Bd6 {1-0 (49) Zierk,S (2476)-Ostrovskiy,A (2414) Charlotte 2018}) 10. b4 Bg6 11. Bxg6 hxg6 12. a4 a5 13. b5 Na7 14. Nd2 e6 15. c4 Bb4 16. c5 Qd8 17. Qd1 Nh5 18. Nf3 Nxf4 19. Nxf4 g5 20. Ne2 g4 21. Ne5 Qh4 22. h3 gxh3 23. g3 Qe4 24. f3 Qe3+ 25. Kh2 $14 f6 26. Ng4 Qd2 27. Qxd2 Bxd2 28. Rad1 Bb4 29. Nf4 Kf7 30. Nxh3 Nc8 31. Kg2 Ne7 32. Ne3 Rac8 33. Nf2 e5 34. dxe5 Bxc5 35. Nxd5 fxe5 36. Nxe7 Kxe7 37. Rfe1 Bxf2 38. Kxf2 Rh2+ 39. Ke3 Rc4 40. Rc1 Rxa4 41. Rc7+ Ke6 42. Rxb7 Ra3+ 43. Ke4 Ra4+ 44. Kd3 Rha2 45. Rc1 Rd4+ 46. Ke3 Ra3+ 47. Ke2 Ra2+ 48. Ke3 Ra3+ {Ke4} 1/2-1/2

[Event "9th Holuj-Radzikowska Rapid 19"]
[Site "Wroclaw"]
[Date "2019.12.07"]
[Round "2"]
[White "Sliwicka, Alicja"]
[Black "Badelka, Olga"]
[Result "1-0"]
[ECO "B32"]
[WhiteElo "2264"]
[BlackElo "2399"]
[Annotator "NA"]
[PlyCount "141"]
[EventDate "2019.12.06"]
[EventType "team-tourn"]
[EventCountry "POL"]
[SourceTitle "playchess.com"]
[Source "ChessBase"]
[SourceQuality "1"]
[WhiteTeam "Team Poland"]
[BlackTeam "Team World"]
[TimeControl "900+10"]

1. e4 c5 {[%emt 0:00:00]} 2. Nf3 {[%emt 0:00:00]} Nc6 {[%emt 0:00:00]} 3. d4 {[%emt 0:00:00]} cxd4 {[%emt 0:00:00]} 4. Nxd4 {[%emt 0:00:00]} e5 {[%emt 0:00:00]} 5. Nb5 {[%emt 0:00:08]} d6 {[%emt 0:00:01]} 6. c4 {[%emt 0:00:10]} Be7 {[%emt 0:00:03]} 7. N1c3 {[%emt 0:00:10]} a6 {[%emt 0:00:01]} 8. Na3 {[%emt 0:00:02]} f5 {[%emt 0:00:02]} 9. exf5 {[%emt 0:00:03]} Bxf5 {[%emt 0:00:02]} 10. Bd3 {[%emt 0:00:04]} Be6 {[%emt 0:00:03]} 11. O-O {[%emt 0:00:08]} Nf6 {[%emt 0:00:02]} 12. Nc2 {[%emt 0:00:16]} Qd7 {[%emt 0:00:06]} 13. b3 {[%emt 0:00:12]} O-O {[%emt 0:00:05]} 14. Be3 {[%emt 0:00:41]} Bd8 {[%emt 0:02:12]} 15. Nd5 {[%emt 0:00:39]} Bxd5 {[%emt 0:02:49]} 16. cxd5 {[%emt 0:00:07]} Ne7 {[%emt 0:00:01]} 17. Bg5 {[%emt 0:00:37]} Bb6 {[%emt 0:00:26]} 18. Ne3 {[%emt 0:00:42]} Kh8 {[%emt 0:00:27]} 19. Bxf6 {[%emt 0:00:54]} Rxf6 {[%emt 0:00:25]} 20. Qh5 {[%emt 0:01:00]} g6 {[%emt 0:00:19]} 21. Qg5 {[%emt 0:01:29]} Raf8 {[%emt 0:00:16]} 22. Rae1 {[%emt 0:00:49]} Bxe3 {[%emt 0:02:16]} 23. fxe3 {[%emt 0:00:31]} Nxd5 {[%emt 0:01:36]} 24. Bc4 {[%emt 0:01:40]} Rxf1+ {[%emt 0:00:07]} 25. Rxf1 {[%emt 0:00:11]} Rxf1+ {[%emt 0:00:01]} 26. Bxf1 {[%emt 0:00:36]} Kg7 {[%emt 0:00:22]} 27. h4 {[%emt 0:01:00]} Qf5 {[%emt 0:03:16]} 28. Qd8 {[%emt 0:02:32]} Qf6 {[%emt 0:00:34]} 29. Qc8 {[%emt 0:00:54]} Qe7 {[%emt 0:00:42]} 30. e4 {[%emt 0:00:43]} Nf6 {[%emt 0:00:59]} 31. Bd3 {[%emt 0:00:08]} Qd7 {[%emt 0:00:38]} 32. Qc2 {[%emt 0:00:47]} Nh5 {[%emt 0:00:12]} 33. Be2 {[%emt 0:00:43]} Nf4 {[%emt 0:00:15]} 34. Bf3 {[%emt 0:00:01]} Qc6 {[%emt 0:01:06]} 35. Qd2 {[%emt 0:00:30]} Qc5+ {[%emt 0:00:01]} 36. Kh2 {[%emt 0:00:05]} Ne6 {[%emt 0:00:52]} 37. h5 {[%emt 0:00:19]} gxh5 {[%emt 0:00:15]} 38. Bxh5 {[%emt 0:00:06]} Nf4 {[%emt 0:00:12]} 39. Bf3 {[%emt 0:00:10]} Qc7 {[%emt 0:00:07]} 40. Qe1 {[%emt 0:00:33]} Qf7 {[%emt 0:00:08]} 41. Qh4 {[%emt 0:00:10]} Ng6 {[%emt 0:00:11]} 42. Qd8 {[%emt 0:00:25]} Qe7 {[%emt 0:00:20]} 43. Qc8 {[%emt 0:00:08]} Qf7 {[%emt 0:00:18]} 44. Qd8 {[%emt 0:00:06]} Qf4+ {[%emt 0:00:03]} 45. Kg1 {[%emt 0:00:02]} Qf6 {[%emt 0:00:13]} 46. Qd7+ {[%emt 0:00:12]} Qe7 {[%emt 0:00:01]} 47. Qc8 {[%emt 0:00:01]} Nf4 {[%emt 0:00:06]} 48. Qg4+ {[%emt 0:00:07]} Kf8 {[%emt 0:00:12]} 49. Qf5+ {[%emt 0:00:14]} Qf7 {[%emt 0:00:11]} 50. Qc8+ {[%emt 0:00:02]} Kg7 {[%emt 0:00:04]} 51. Qg4+ {[%emt 0:00:09]} Ng6 {[%emt 0:00:22]} 52. Qc8 {[%emt 0:00:03]} Qe7 {[%emt 0:00:14]} 53. Bg4 {[%emt 0:00:32]} Nf4 {[%emt 0:00:06]} 54. Bf3 {[%emt 0:00:08]} Ne6 {[%emt 0:00:07]} 55. Bg4 {[%emt 0:00:10]} Nd4 {[%emt 0:00:04]} 56. Bh3 {[%emt 0:00:24]} Kh6 {[%emt 0:00:09]} 57. Qg8 {[%emt 0:00:27]} Qf6 {[%emt 0:00:18]} 58. Bg4 {[%emt 0:00:29]} Qg7 {[%emt 0:00:08]} 59. Qxg7+ {[%emt 0:00:32]} Kxg7 {[%emt 0:00:01]} 60. Bc8 {[%emt 0:00:01]} a5 {[%emt 0:00:37]} 61. Bxb7 {[%emt 0:00:05]} Ne2+ {[%emt 0:00:01]} 62. Kf2 {[%emt 0:00:11]} Nc3 {[%emt 0:00:00]} 63. a4 {[%emt 0:00:12]} Na2 {[%emt 0:00:29]} 64. Ke3 {[%emt 0:00:05]} Nb4 {[%emt 0:00:03]} 65. Kd2 {[%emt 0:00:14]} Kf6 {[%emt 0:00:16]} 66. Kc3 {[%emt 0:00:03]} Na2+ {[%emt 0:00:13]} 67. Kc4 {[%emt 0:00:10]} Nc1 {[%emt 0:00:04]} 68. Bd5 {[%emt 0:00:11]} Ne2 {[%emt 0:00:09]} 69. b4 {[%emt 0:00:21]} Ke7 {[%emt 0:00:03]} 70. bxa5 {[%emt 0:00:03]} Kd8 {[%emt 0:00:02]} 71. a6 {[%emt 0:00:03]} 1-0

[Event "9th Holuj-Radzikowska Rapid 19"]
[Site "Wroclaw"]
[Date "2019.12.07"]
[Round "2"]
[White "Antolak, Julia"]
[Black "Bodnaruk, Anastasia"]
[Result "0-1"]
[ECO "B90"]
[WhiteElo "2249"]
[BlackElo "2413"]
[Annotator "NA"]
[PlyCount "70"]
[EventDate "2019.12.06"]
[EventType "team-tourn"]
[EventCountry "POL"]
[SourceTitle "playchess.com"]
[Source "ChessBase"]
[SourceQuality "1"]
[WhiteTeam "Team Poland"]
[BlackTeam "Team World"]
[TimeControl "900+10"]

1. e4 c5 {[%emt 0:00:00]} 2. Nf3 {[%emt 0:00:00]} d6 {[%emt 0:00:00]} 3. d4 {[%emt 0:00:00]} cxd4 {[%emt 0:00:00]} 4. Nxd4 {[%emt 0:00:00]} Nf6 {[%emt 0:00:00]} 5. Nc3 {[%emt 0:00:00]} a6 {[%emt 0:00:00]} 6. Be3 {[%emt 0:00:00]} e5 {[%emt 0:00:00]} 7. Nb3 {[%emt 0:00:01]} Be6 {[%emt 0:00:01]} 8. f3 {[%emt 0:00:02]} Nbd7 {[%emt 0:00:03]} 9. Qd2 {[%emt 0:00:01]} Be7 {[%emt 0:00:03]} 10. O-O-O {[%emt 0:00:07]} b5 {[%emt 0:00:02]} 11. g4 {[%emt 0:00:58]} O-O {[%emt 0:00:12]} 12. g5 {[%emt 0:00:06]} Nh5 {[%emt 0:00:01]} 13. Nd5 {[%emt 0:00:07]} Bxd5 {[%emt 0:00:05] B90: Sicilian Najdorf: Unusual White 6th moves, 6 Be3 Ng4 and 6 Be3 e5} 14. exd5 {[%emt 0:00:01]} f6 {[%emt 0:00:54]} 15. gxf6 {[%emt 0:00:08]} Bxf6 {[%emt 0:00:06]} (15... Rxf6 16. Na5 Nf4 17. Nc6 Qf8 18. Kb1 Bd8 19. c4 Bb6 20. cxb5 axb5 21. Bxb5 {1-0 (47) Dominguez Perez,L (2750)-Paravyan,D (2610) Sochi 2019}) 16. Na5 {[%emt 0:00:11]} Nf4 {[%emt 0:00:25]} 17. Nc6 {[%emt 0:00:43]} Qe8 {[%emt 0:02:03]} 18. Bd3 {[%emt 0:00:29] [#]} Qh5 $146 {[%emt 0:02:39]} ({Predecessor:} 18... Bg5 19. Kb1 Kh8 20. Be4 Nf6 21. Rhg1 {0-1 (59) Martinez Fernandez,A (2268)-Esipenko,A (2589) Barcelona 2018}) 19. Be4 {[%emt 0:00:35]} Bg5 {[%emt 0:00:09]} 20. Kb1 {[%emt 0:00:26]} Nh3 {[%emt 0:01:09]} 21. Bxg5 {[%emt 0:00:23]} Nxg5 {[%emt 0:01:13]} 22. Ne7+ {[%emt 0:06:33]} Kh8 {[%emt 0:00:04]} 23. Nf5 {[%emt 0:00:07]} Rxf5 {[%emt 0:03:39]} 24. Bxf5 {[%emt 0:00:02]} Nxf3 {[%emt 0:00:02]} 25. Qc3 {[%emt 0:02:17]} Qxf5 $19 {[%emt 0:00:27]} 26. Qc6 {[%emt 0:00:02]} Re8 {[%emt 0:00:58]} 27. Qxa6 {[%emt 0:00:42]} e4 {[%emt 0:00:30]} 28. Qxb5 {[%emt 0:00:06]} e3 {[%emt 0:00:26]} 29. Qe2 {[%emt 0:00:18]} Qe4 {[%emt 0:00:18]} 30. Rhf1 {[%emt 0:01:35]} Nd2+ {[%emt 0:00:29]} 31. Rxd2 {[%emt 0:00:02]} exd2 {[%emt 0:00:01]} 32. Qxd2 {[%emt 0:00:01]} Nf6 {[%emt 0:00:24]} 33. Rd1 {[%emt 0:00:51]} Nxd5 {[%emt 0:00:45]} 34. a4 {[%emt 0:00:02]} Ne3 {[%emt 0:00:17]} 35. Re1 {[%emt 0:00:02]} Nc4 {[%emt 0:00:20]} 0-1

[Event "9th Holuj-Radzikowska Rapid 19"]
[Site "Wroclaw"]
[Date "2019.12.07"]
[Round "3"]
[White "Arabidze, Meri"]
[Black "Sliwicka, Alicja"]
[Result "1/2-1/2"]
[ECO "A05"]
[WhiteElo "2435"]
[BlackElo "2264"]
[Annotator "NA"]
[PlyCount "92"]
[EventDate "2019.12.06"]
[EventType "team-tourn"]
[EventCountry "POL"]
[SourceTitle "playchess.com"]
[Source "ChessBase"]
[SourceQuality "1"]
[WhiteTeam "Team World"]
[BlackTeam "Team Poland"]
[TimeControl "900+10"]

1. Nf3 {[%emt 0:00:00]} Nf6 {[%emt 0:00:00]} 2. c4 {[%emt 0:00:00]} d6 {[%emt 0:00:14]} 3. d4 {[%emt 0:00:04]} Nbd7 {[%emt 0:00:01]} 4. Nc3 {[%emt 0:00:03]} e5 {[%emt 0:00:03]} 5. g3 {[%emt 0:00:04]} Be7 {[%emt 0:00:02]} 6. Bg2 {[%emt 0:00:01]} O-O {[%emt 0:00:02]} 7. O-O {[%emt 0:00:02]} c6 {[%emt 0:00:13]} 8. e4 {[%emt 0:00:08]} Re8 {[%emt 0:00:09]} 9. Re1 {[%emt 0:00:01]} Bf8 {[%emt 0:00:02]} 10. h3 {[%emt 0:00:21]} a6 {[%emt 0:00:02]} 11. d5 {[%emt 0:01:38]} Qc7 {[%emt 0:00:02]} 12. Be3 {[%emt 0:00:07]} b5 {[%emt 0:00:13]} 13. dxc6 {[%emt 0:02:01]} Qxc6 {[%emt 0:00:02]} 14. cxb5 {[%emt 0:00:38]} axb5 {[%emt 0:00:01]} 15. Rc1 {[%emt 0:00:03]} Qb7 {[%emt 0:00:33]} 16. b4 {[%emt 0:00:09]} Nb6 {[%emt 0:01:43]} 17. Nxb5 {[%emt 0:00:12]} Nc4 {[%emt 0:00:09]} 18. a4 {[%emt 0:00:55]} Be6 {[%emt 0:00:32]} 19. Ng5 {[%emt 0:00:50]} Nb2 {[%emt 0:03:06]} 20. Qe2 {[%emt 0:01:53]} Nxa4 {[%emt 0:01:26]} 21. Nc7 {[%emt 0:00:13]} Bb3 {[%emt 0:01:11]} 22. Nxa8 {[%emt 0:01:53]} Rxa8 {[%emt 0:00:03]} 23. b5 {[%emt 0:00:57]} h6 {[%emt 0:00:15]} 24. Qd3 {[%emt 0:00:40]} Ba2 {[%emt 0:01:16]} 25. Rc2 {[%emt 0:03:30]} Nc5 {[%emt 0:01:22]} 26. Bxc5 {[%emt 0:00:13]} dxc5 {[%emt 0:00:01]} 27. Nf3 {[%emt 0:01:36]} c4 {[%emt 0:00:01]} 28. Rxc4 {[%emt 0:00:14]} Bxc4 {[%emt 0:00:01]} 29. Qxc4 {[%emt 0:00:01]} Rc8 {[%emt 0:00:13]} 30. Qe2 {[%emt 0:00:03]} Rc5 {[%emt 0:00:08]} 31. Bf1 {[%emt 0:00:16]} Nd7 {[%emt 0:00:33]} 32. Rd1 {[%emt 0:00:08]} Nf6 {[%emt 0:00:22]} 33. Nd2 {[%emt 0:00:24]} Rc3 {[%emt 0:00:21]} 34. Kh2 {[%emt 0:00:15]} Kh7 {[%emt 0:01:04]} 35. Rb1 {[%emt 0:00:16]} Bc5 {[%emt 0:00:33]} 36. Rb3 {[%emt 0:00:31]} Rc1 {[%emt 0:00:17]} 37. Rf3 {[%emt 0:00:16]} Bb6 {[%emt 0:00:20]} 38. Nc4 {[%emt 0:00:13]} Bd4 {[%emt 0:00:06]} 39. Nd6 {[%emt 0:00:07]} Qa7 {[%emt 0:00:22]} 40. Nf5 {[%emt 0:00:13]} Qb7 {[%emt 0:00:20]} 41. Nd6 {[%emt 0:00:15]} Qc7 {[%emt 0:00:17]} 42. Nf5 {[%emt 0:00:11]} Rc2 {[%emt 0:00:12]} 43. Qe1 {[%emt 0:00:06]} Rc1 {[%emt 0:00:25]} 44. Qe2 {[%emt 0:00:01]} Rc2 {[%emt 0:00:02]} 45. Qe1 {[%emt 0:00:23]} Rc1 {[%emt 0:00:16]} 46. Qe2 {[%emt 0:00:17]} Rc2 {[%emt 0:00:02]} 1/2-1/2

[Event "9th Holuj-Radzikowska Rapid 19"]
[Site "Wroclaw"]
[Date "2019.12.07"]
[Round "3"]
[White "Houska, Jovanka"]
[Black "Majdan, Joanna"]
[Result "1-0"]
[ECO "B06"]
[WhiteElo "2412"]
[BlackElo "2336"]
[Annotator "NA"]
[PlyCount "92"]
[EventDate "2019.12.06"]
[EventType "team-tourn"]
[EventCountry "POL"]
[SourceTitle "playchess.com"]
[Source "ChessBase"]
[SourceQuality "1"]
[WhiteTeam "Team World"]
[BlackTeam "Team Poland"]
[TimeControl "900+10"]

1. d4 g6 2. e4 Bg7 3. Nc3 d6 4. Be3 a6 5. f4 b5 6. Be2 Nd7 7. Bf3 e5 8. fxe5 dxe5 9. d5 Ne7 10. Qd2 h6 11. Nge2 Bb7 12. O-O-O Nc8 13. h4 Nd6 14. b3 h5 15. Rdg1 Qe7 16. g4 hxg4 17. Rxg4 Nf6 18. Bg5 Qf8 19. Rgg1 b4 20. Na4 Ndxe4 21. Qd3 Nf2 22. Qc4 Nxh1 23. Nc5 Qe7 24. Nxb7 Nf2 25. Ng3 Nh3 26. Re1 Nxg5 27. hxg5 Nd7 28. Ne4 Nb6 29. Qc6+ Kf8 30. Nbc5 Rd8 31. Nf6 Qd6 32. Nxa6 Bxf6 33. gxf6 Nxd5 34. Bxd5 Qxd5 35. Qxc7 Qd2+ 36. Kb2 Qd4+ 37. Kb1 Rh2 38. Nc5 Qd6 39. Ne6+ Qxe6 40. Qxd8+ Qe8 41. Qd6+ Kg8 42. Rxe5 Rh1+ 43. Kb2 Qc8 44. Qxb4 Rh2 45. Qe4 Kh7 46. Re7 Qd8 1-0

[Event "9th Holuj-Radzikowska Rapid 19"]
[Site "Wroclaw"]
[Date "2019.12.07"]
[Round "3"]
[White "Cyfka, Karina"]
[Black "Zatonskih, Anna"]
[Result "*"]
[ECO "D53"]
[WhiteElo "2410"]
[BlackElo "2420"]
[Annotator "NA"]
[PlyCount "24"]
[EventDate "2019.12.06"]
[EventType "team-tourn"]
[EventCountry "POL"]
[SourceTitle "playchess.com"]
[Source "ChessBase"]
[SourceQuality "1"]
[WhiteTeam "Team Poland"]
[BlackTeam "Team World"]
[TimeControl "900+10"]

1. d4 d5 2. c4 e6 3. Nc3 Nf6 4. Bg5 Be7 5. e3 O-O 6. Qc2 h6 7. Bxf6 Bxf6 8. Nf3 a6 9. cxd5 exd5 10. h3 Re8 11. O-O-O b5 12. g4 Be6 *

[Event "9th Holuj-Radzikowska Rapid 19"]
[Site "Wroclaw"]
[Date "2019.12.07"]
[Round "3"]
[White "Cyfka, Karina"]
[Black "Zatonskih, Anna"]
[Result "1-0"]
[ECO "D55"]
[WhiteElo "2410"]
[BlackElo "2420"]
[Annotator "NA"]
[PlyCount "191"]
[EventDate "2019.12.06"]
[EventType "team-tourn"]
[EventCountry "POL"]
[SourceTitle "playchess.com"]
[Source "ChessBase"]
[SourceQuality "1"]
[WhiteTeam "Team Poland"]
[BlackTeam "Team World"]
[TimeControl "900+10"]

1. d4 d5 2. c4 e6 3. Nc3 Nf6 4. Bg5 Be7 5. e3 O-O 6. Nf3 h6 7. Bxf6 Bxf6 8. Qc2 a6 9. cxd5 exd5 10. h3 Re8 11. O-O-O b5 12. g4 Be6 13. Kb1 Nd7 14. Rg1 c5 15. Ne2 Rc8 16. Rc1 Qa5 17. Qd2 Qxd2 18. Nxd2 c4 19. Nf4 g5 20. Nh5 Bh8 21. f4 Nf6 22. Nxf6+ Bxf6 23. Nf3 Rcd8 24. Ne5 Bxe5 25. fxe5 f6 26. exf6 Kf7 27. Bg2 Kxf6 28. Kc2 Kg7 29. Kd2 Rd6 30. Rgf1 Bf7 31. Rf5 Be6 32. Re5 Bf7 33. Rf1 Rxe5 34. dxe5 Rd7 35. Kc3 a5 36. Kd4 b4 37. Rf6 Rc7 38. Rf1 c3 39. b3 c2 40. Rc1 Rc3 41. Bxd5 Bxd5 42. Kxd5 Kf7 43. Kd6 Rd3+ 44. Kc5 Rd2 45. Kb5 Rd5+ 46. Kc4 Rxe5 47. Kd4 Ke6 48. Rxc2 Rd5+ 49. Ke4 Re5+ 50. Kd3 Rd5+ 51. Ke2 Ke5 52. Rc6 Rb5 53. Kf3 a4 54. bxa4 Ra5 55. Rxh6 Rxa4 56. Rb6 Kd5 57. Rb8 Kc4 58. Rc8+ Kd3 59. Rd8+ Kc3 60. Rd5 Rxa2 61. Rxg5 b3 62. Rc5+ Kd2 63. Rb5 b2 64. g5 Kc2 65. h4 Ra3 66. g6 Rb3 67. Rxb3 Kxb3 68. g7 b1=Q 69. g8=Q+ Kc3 70. Qc8+ Kd2 71. Qd7+ Ke1 72. Kf4 Qg6 73. Qf5 Qh6+ 74. Qg5 Qd6+ 75. Kf3 Qd1+ 76. Kg3 Qd6+ 77. Qf4 Qg6+ 78. Kh2 Qc2+ 79. Kh3 Qc8+ 80. Kg3 Qe8 81. e4 Qg6+ 82. Kh3 Qe6+ 83. Qg4 Qf6 84. Qf5 Qc3+ 85. Kg4 Qg7+ 86. Qg5 Qd7+ 87. Kf3 Qd1+ 88. Kf4 Qd6+ 89. e5 Qd2+ 90. Kf5 Qd7+ 91. e6 Qd5+ 92. Kf6 Qd8+ 93. Kf7 Qc7+ 94. e7 Kf2 95. h5 Qc4+ 96. Kg7 1-0

[Event "9th Holuj-Radzikowska Rapid 19"]
[Site "Wroclaw"]
[Date "2019.12.07"]
[Round "3"]
[White "Socko, Monika"]
[Black "Bulmaga, Irina"]
[Result "1-0"]
[ECO "E12"]
[WhiteElo "2407"]
[BlackElo "2434"]
[Annotator "NA"]
[PlyCount "89"]
[EventDate "2019.12.06"]
[EventType "team-tourn"]
[EventCountry "POL"]
[SourceTitle "playchess.com"]
[Source "ChessBase"]
[SourceQuality "1"]
[WhiteTeam "Team Poland"]
[BlackTeam "Team World"]
[TimeControl "900+10"]

1. d4 {[%emt 0:00:00]} Nf6 {[%emt 0:00:00]} 2. c4 {[%emt 0:00:00]} e6 {[%emt 0:00:00]} 3. Nf3 {[%emt 0:00:00]} b6 {[%emt 0:00:00]} 4. Bf4 {[%emt 0:00:00]} Bb7 {[%emt 0:00:00]} 5. e3 {[%emt 0:00:00]} g6 {[%emt 0:00:00]} 6. Nc3 {[%emt 0:00:01]} Bg7 {[%emt 0:00:00]} 7. h3 {[%emt 0:00:37]} d6 {[%emt 0:00:01]} 8. Be2 {[%emt 0:00:23]} O-O {[%emt 0:00:04]} 9. Qc2 {[%emt 0:00:07]} Nbd7 {[%emt 0:00:55]} 10. O-O {[%emt 0:00:08]} Qe7 {[%emt 0:00:06]} 11. Rfd1 {[%emt 0:00:09]} h6 {[%emt 0:00:05]} 12. Bh2 {[%emt 0:00:17]} c6 {[%emt 0:01:16]} 13. b4 {[%emt 0:00:49]} e5 {[%emt 0:00:13]} 14. dxe5 {[%emt 0:00:43]} dxe5 {[%emt 0:00:02]} 15. b5 {[%emt 0:00:12]} cxb5 {[%emt 0:00:13]} 16. Nxb5 {[%emt 0:00:27]} Ne4 {[%emt 0:00:43]} 17. Nd2 {[%emt 0:01:01]} Nxd2 {[%emt 0:00:14]} 18. Rxd2 {[%emt 0:00:26]} Nc5 {[%emt 0:00:04]} 19. Nc3 {[%emt 0:00:28]} Rac8 {[%emt 0:00:49]} 20. Nd5 {[%emt 0:00:36]} Qe6 {[%emt 0:00:05]} 21. e4 {[%emt 0:01:06]} f5 {[%emt 0:00:03]} 22. exf5 {[%emt 0:00:09]} gxf5 {[%emt 0:00:07]} 23. Re1 {[%emt 0:00:02]} Ne4 {[%emt 0:00:17]} 24. Rdd1 {[%emt 0:03:17]} Bxd5 {[%emt 0:00:30]} 25. cxd5 {[%emt 0:00:00]} Qd6 {[%emt 0:00:01]} 26. Qb2 {[%emt 0:02:14]} Rc5 {[%emt 0:02:24]} 27. Bd3 {[%emt 0:00:52]} Nc3 {[%emt 0:00:09]} 28. Rc1 {[%emt 0:00:01]} Rfc8 {[%emt 0:00:36]} 29. Bxf5 {[%emt 0:00:15]} Na4 {[%emt 0:00:55]} 30. Qd2 {[%emt 0:01:15]} Rxc1 {[%emt 0:00:53]} 31. Rxc1 {[%emt 0:01:30]} Rxc1+ {[%emt 0:00:03]} 32. Qxc1 {[%emt 0:00:01]} Qxd5 {[%emt 0:00:50]} 33. Qc8+ {[%emt 0:00:55]} Kf7 {[%emt 0:00:02]} 34. Bg3 {[%emt 0:00:18]} Nc5 {[%emt 0:00:34]} 35. Qc7+ {[%emt 0:00:07]} Kf6 {[%emt 0:01:19]} 36. Bh7 {[%emt 0:00:02]} Ne6 {[%emt 0:00:36]} 37. Bh4+ {[%emt 0:00:47]} Ng5 {[%emt 0:00:01]} 38. Qxa7 {[%emt 0:00:38]} Qd1+ {[%emt 0:00:14]} 39. Kh2 {[%emt 0:00:01]} Qd6 {[%emt 0:00:04]} 40. Bg8 {[%emt 0:00:22]} Kg6 {[%emt 0:00:26]} 41. Bg3 {[%emt 0:00:16]} h5 {[%emt 0:00:48]} 42. Qb7 {[%emt 0:00:28]} Qd4 {[%emt 0:02:56]} 43. h4 {[%emt 0:00:27]} Ne4 {[%emt 0:00:05]} 44. Qf7+ {[%emt 0:00:07]} Kh6 {[%emt 0:00:01]} 45. Qf5 {[%emt 0:00:09]} 1-0

[Event "9th Holuj-Radzikowska Rapid 19"]
[Site "Wroclaw"]
[Date "2019.12.07"]
[Round "3"]
[White "Zawadzka, Jolanta"]
[Black "Bodnaruk, Anastasia"]
[Result "1-0"]
[ECO "B52"]
[WhiteElo "2400"]
[BlackElo "2413"]
[Annotator "NA"]
[PlyCount "99"]
[EventDate "2019.12.06"]
[EventType "team-tourn"]
[EventCountry "POL"]
[SourceTitle "playchess.com"]
[Source "ChessBase"]
[SourceQuality "1"]
[WhiteTeam "Team Poland"]
[BlackTeam "Team World"]
[TimeControl "900+10"]

1. e4 c5 2. Nf3 d6 3. Bb5+ Bd7 4. Bxd7+ Qxd7 5. O-O Nc6 6. c3 Nf6 7. Qe2 e6 8. d4 cxd4 9. cxd4 d5 10. e5 Ne4 11. Be3 Be7 12. Ne1 f6 13. f3 Ng5 14. Nd3 fxe5 15. dxe5 O-O 16. Nd2 b6 17. f4 Nf7 18. Nf3 Nh6 19. Kh1 Rac8 20. Rac1 Rc7 21. Nd4 Nxd4 22. Bxd4 Rc4 23. Bf2 Rfc8 24. b3 Rxc1 25. Rxc1 Rxc1+ 26. Nxc1 Qc6 27. Nd3 Qc3 28. h3 Nf5 29. Kh2 Ba3 30. g4 Ne7 31. Qf3 Nc6 32. Kg2 Be7 33. Qe2 g6 34. f5 Nd4 35. Bxd4 Qxd4 36. fxe6 Kf8 37. Qf2+ Qxf2+ 38. Kxf2 g5 39. b4 a5 40. a3 axb4 41. axb4 d4 42. Kf3 Bd8 43. Ke4 Ke7 44. Kd5 b5 45. Nc5 Bb6 46. Kxd4 h6 47. Kd5 Bc7 48. Ne4 Bb6 49. Nd6 {B} Be3 50. Nf5+ 1-0